fUSD/lending_fUSD_20250930
["ID","MTS","AMOUNT","RATE_DAILY","PERIOD"]
[388482859,1759203033032,-548.237,0.00017427,2]
[388482860,1759203033044,-583.16343629,0.00017429,2]
[388482861,1759203033055,-287.26836,0.00017439,2]
[388482862,1759203033065,-500.0,0.00017456,2]
[388482863,1759203033075,-583.16343629,0.00017458,2]
[388482864,1759203033086,-150.0,0.00017461,2]
[388482865,1759203033096,-150.0,0.00017461,2]
[388482866,1759203033106,-151.0,0.00017462,2]
[388482867,1759203033118,-245.75114,0.00017462,2]
[388482868,1759203033128,-1000.0,0.00017462,2]
[388482869,1759203033138,-151.0,0.00017462,2]
[388482870,1759203033148,-1000.0,0.00017462,2]
[388482871,1759203033158,-1000.0,0.00017462,2]
[388482872,1759203033168,-151.0,0.00017462,2]
[388482873,1759203033178,-1000.0,0.00017462,2]
[388482874,1759203033193,-151.0,0.00017462,2]
[388482875,1759203033208,-28.09575129,0.00017462,2]
[388482876,1759203033221,-471.90424871,0.00017462,2]
[388482877,1759203033232,-1000.0,0.00017462,2]
[388482878,1759203033243,-151.0,0.00017462,2]
[388482879,1759203033253,-500.0,0.00017462,2]
[388482880,1759203033264,-1000.0,0.00017462,2]
[388482881,1759203033274,-151.0,0.00017462,2]
[388482882,1759203033284,-1000.0,0.00017462,2]
[388482883,1759203033294,-151.0,0.00017462,2]
[388482884,1759203033304,-1000.0,0.00017462,2]
[388482885,1759203033314,-151.0,0.00017462,2]
[388482886,1759203033323,-1000.0,0.00017462,2]
[388482887,1759203033333,-1000.0,0.00017462,2]
[388482888,1759203033343,-1000.0,0.00017462,2]
[388482889,1759203033354,-322.6107,0.00017462,2]
[388482890,1759203033363,-1000.0,0.00017462,2]
[388482891,1759203033373,-1000.0,0.00017462,2]
[388482892,1759203033383,-285.0462963,0.00017462,2]
[388482893,1759203033393,-500.0,0.00017462,2]
[388482894,1759203033403,-500.0,0.00017462,2]
[388482895,1759203033412,-500.0,0.00017462,2]
[388482896,1759203033423,-500.0,0.00017462,2]
[388482897,1759203033432,-500.0,0.00017462,2]
[388482898,1759203033442,-500.0,0.00017462,2]
[388482899,1759203033452,-500.0,0.00017462,2]
[388482900,1759203033462,-500.0,0.00017462,2]
[388482901,1759203033472,-500.0,0.00017462,2]
[388482902,1759203033482,-500.0,0.00017462,2]
[388482903,1759203033492,-500.0,0.00017462,2]
[388482904,1759203033502,-287.26836,0.00017468,2]
[388482905,1759203033512,-305.28744867,0.00017469,2]
[388482906,1759203033522,-500.0,0.00017469,2]
[388482907,1759203033532,-218.97092497,0.00017469,2]
[388482908,1759203033541,-294.42473675,0.00017469,2]
[388482909,1759203033551,-3548.98311248,0.0001747,3]
[388482910,1759203038891,-1694.32815116,0.0001747,3]
[388482911,1759203038904,-3681.61735386,0.0001747,3]
[388482912,1759203038915,-4480.7781181,0.0001747,3]
[388482913,1759203038928,-739.528595,0.0001747,3]
[388482914,1759203038941,-1903.4859,0.0001747,3]
[388482916,1759203040218,-1529.0169867,0.00017399,2]
[388482917,1759203040229,-318.8230133,0.00017399,2]
[388482918,1759203040315,-613.32896393,0.00017399,2]
[388482919,1759203040424,-1682.76108,0.00017399,2]
[388482926,1759203043286,-1777.23111263,0.00017399,2]
[388482929,1759203046308,-484.052064,0.0001737,2]
[388482930,1759203046575,-7507.81964105,0.0001737,2]
[388483150,1759203106625,183.29,0.0001653,2]
[388483152,1759203106806,183.29,0.00024795,120]
[388483958,1759203164629,159.0,0.000166,2]
[388484128,1759203176026,160.46,0.000166,2]
[388485334,1759203262424,160.19,8.237e-05,2]
[388486624,1759203398426,674.03,0.00016474,2]
[388486772,1759203474756,3065.77,0.00016467,2]
[388486780,1759203525648,514.42,0.00016467,2]
[388486787,1759203579286,8225.94,0.00016478,2]
[388486788,1759203580452,150.0,0.000158,2]
[388486796,1759203648912,666.0,0.00016467,3]
[388486798,1759203720700,165.07,0.00016453,2]
[388486801,1759203748097,150.0,0.00016462,7]
[388486812,1759203916339,285.45,0.000164,2]
[388486813,1759203925026,2138.19,0.00016453,2]
[388486862,1759204108672,150.0,0.000148,2]
[388486863,1759204109082,150.0,0.0001598,2]
[388486952,1759204231397,-187.05645765,0.0001698,2]
[388486953,1759204231409,-300.0,0.00016985,2]
[388486954,1759204231420,-1200.0,0.00016988,2]
[388486955,1759204231431,-300.0,0.00016988,2]
[388486956,1759204231441,-300.0,0.00016988,2]
[388486957,1759204231452,-150.0,0.00016989,2]
[388486958,1759204231463,-150.0,0.00016989,2]
[388486959,1759204231472,-150.0,0.00016989,2]
[388486960,1759204231482,-150.0,0.00016989,2]
[388486961,1759204231492,-150.0,0.00016989,2]
[388486962,1759204231502,-150.0,0.00016989,2]
[388486963,1759204231512,-150.0,0.00016989,2]
[388486964,1759204231522,-151.57880983,0.00016989,2]
[388486965,1759204231532,-152.67080568,0.00016989,2]
[388486966,1759204231542,-150.0,0.00016989,2]
[388486967,1759204231552,-150.0,0.00016989,2]
[388486968,1759204231562,-150.0,0.00016989,2]
[388486969,1759204231571,-150.0,0.00016989,2]
[388486970,1759204231581,-4685.64,0.00017,2]
[388486971,1759204231591,-170.05,0.00017001,2]
[388486972,1759204231603,-250.0,0.00017072,2]
[388486973,1759204231613,-150.0,0.00017146,2]
[388486974,1759204231624,-150.0,0.0001717,2]
[388486975,1759204231634,-502.00172133,0.00017179,2]
[388486976,1759204231643,-500.0,0.00017179,2]
[388486977,1759204231654,-192.80960893,0.00017179,2]
[388486978,1759204231679,-307.19039107,0.00017179,2]
[388486979,1759204231689,-484.95534354,0.00017179,2]
[388486980,1759204231700,-378.18488288,0.00017179,2]
[388486981,1759204231710,-500.0,0.00017179,2]
[388486982,1759204231720,-500.0,0.00017179,2]
[388486983,1759204231730,-500.0,0.00017179,2]
[388486984,1759204231740,-500.0,0.00017179,2]
[388486985,1759204231751,-500.0,0.00017179,2]
[388486986,1759204231761,-500.0,0.00017179,2]
[388486987,1759204231772,-500.0,0.00017179,2]
[388486988,1759204231782,-17.7435524,0.00017179,2]
[388486989,1759204231795,-482.2564476,0.00017179,2]
[388486990,1759204231805,-39.79146229,0.00017179,2]
[388486994,1759204231847,-460.20853771,0.00017179,2]
[388486999,1759204231859,-500.0,0.00017179,2]
[388487002,1759204231869,-500.0,0.00017179,2]
[388487005,1759204231879,-500.0,0.00017179,2]
[388487007,1759204231889,-500.0,0.00017179,2]
[388487009,1759204231899,-500.0,0.00017179,2]
[388487011,1759204231910,-500.0,0.00017179,2]
[388487013,1759204231921,-500.0,0.00017179,2]
[388487015,1759204231931,-500.0,0.00017179,2]
[388487016,1759204231941,-500.0,0.00017179,2]
[388487017,1759204231951,-564.33164628,0.00017179,2]
[388487018,1759204231960,-500.0,0.00017179,2]
[388487019,1759204231971,-500.0,0.00017179,2]
[388487020,1759204231980,-8260.13072239,0.0001718,2]
[388487021,1759204231990,-239.84119403,0.0001718,2]
[388487022,1759204232005,-1673.63,0.00017192,2]
[388487023,1759204232015,-4765.26615048,0.000172,2]
[388487024,1759204232026,-375.0,0.00017206,2]
[388487025,1759204232036,-285.45,0.0001722,2]
[388487026,1759204232051,-150.0,0.00017225,2]
[388487027,1759204232062,-513.15646695,0.00017235,2]
[388487028,1759204232073,-306.22337,0.0001729,2]
[388487029,1759204232084,-2000.0,0.000173,2]
[388487030,1759204232094,-804.83,0.000173,2]
[388487031,1759204232105,-150.0,0.00017304,2]
[388487032,1759204232115,-151.0,0.00017361,2]
[388487033,1759204232126,-151.0,0.00017361,2]
[388487034,1759204232137,-201.6366141,0.00017361,2]
[388487035,1759204232147,-200.0,0.00017361,2]
[388487036,1759204232158,-209.44729371,0.00017361,2]
[388487037,1759204232169,-695.39793187,0.00017361,2]
[388487038,1759204232179,-151.0,0.00017361,2]
[388487039,1759204232190,-151.0,0.00017361,2]
[388487040,1759204232200,-151.0,0.00017361,2]
[388487041,1759204232210,-322.6107,0.00017361,2]
[388487042,1759204232220,-151.0,0.00017361,2]
[388487043,1759204232231,-151.0,0.00017361,2]
[388487044,1759204232242,-151.0,0.00017361,2]
[388487045,1759204232253,-151.0,0.00017361,2]
[388487046,1759204232265,-151.0,0.00017361,2]
[388487047,1759204232275,-333.32923167,0.00017361,2]
[388487048,1759204232293,-166.67076833,0.00017361,2]
[388487049,1759204232304,-151.0,0.00017361,2]
[388487050,1759204232314,-500.0,0.00017361,2]
[388487051,1759204232324,-270.0112705,0.00017361,2]
[388487052,1759204232334,-500.0,0.00017361,2]
[388487053,1759204232344,-500.0,0.00017361,2]
[388487054,1759204232354,-500.0,0.00017361,2]
[388487055,1759204232365,-500.0,0.00017361,2]
[388487056,1759204232375,-500.0,0.00017361,2]
[388487057,1759204232384,-411.03864688,0.00017361,2]
[388487058,1759204232397,-88.96135312,0.00017361,2]
[388487059,1759204232408,-500.0,0.00017361,2]
[388487060,1759204232418,-263.72837985,0.00017361,2]
[388487071,1759204239804,-236.27162015,0.00017361,2]
[388487072,1759204239814,-500.0,0.00017361,2]
[388487073,1759204239823,-576.26661011,0.00017361,2]
[388487074,1759204239833,-500.0,0.00017361,2]
[388487075,1759204239842,-500.0,0.00017361,2]
[388487076,1759204239852,-500.0,0.00017361,2]
[388487077,1759204239862,-500.0,0.00017361,2]
[388487078,1759204239872,-500.0,0.00017361,2]
[388487079,1759204239881,-500.0,0.00017361,2]
[388487080,1759204239890,-541.70048599,0.00017361,2]
[388487081,1759204239900,-500.0,0.00017361,2]
[388487082,1759204239910,-187.40121328,0.00017361,2]
[388487083,1759204239920,-500.0,0.00017361,2]
[388487084,1759204239930,-500.0,0.00017361,2]
[388487085,1759204239942,-500.0,0.00017361,2]
[388487086,1759204239952,-151.0,0.00017361,2]
[388487087,1759204239961,-151.0,0.00017361,2]
[388487088,1759204239971,-500.0,0.00017361,2]
[388487089,1759204239981,-151.0,0.00017361,2]
[388487090,1759204239991,-254.42210631,0.00017361,2]
[388487097,1759204243097,-58.64458076,0.00017361,2]
[388487098,1759204243148,-186.93331293,0.00017361,2]
[388487099,1759204243158,-151.0,0.00017361,2]
[388487100,1759204243168,-362.58606365,0.00017361,2]
[388487101,1759204243178,-151.0,0.00017361,2]
[388487102,1759204243187,-151.0,0.00017361,2]
[388487103,1759204243197,-151.0,0.00017361,2]
[388487104,1759204243206,-151.0,0.00017361,2]
[388487105,1759204243215,-247.64981845,0.00017361,2]
[388487106,1759204243225,-151.71374604,0.00017361,2]
[388487107,1759204243235,-187.8541,0.00017361,2]
[388487108,1759204243244,-608.26295893,0.00017362,2]
[388487109,1759204243256,-1190.22424319,0.00017362,2]
[388487110,1759204243266,-150.0,0.00017367,2]
[388487111,1759204243275,-352.25089593,0.00017368,2]
[388487112,1759204243284,-965.39861221,0.0001737,2]
[388487113,1759204243296,-2658.59213977,0.0001737,2]
[388487114,1759204243306,-250.0,0.0001737,2]
[388487115,1759204243315,-294.55816573,0.0001737,2]
[388487116,1759204243330,-0.02441015,0.0001737,2]
[388487117,1759204243340,-303.218628,0.00017373,2]
[388487118,1759204243349,-153.77347639,0.00017373,2]
[388487119,1759204243361,-149.44515161,0.00017373,2]
[388487120,1759204243375,-303.218628,0.00017373,2]
[388487121,1759204243384,-303.218628,0.00017373,2]
[388487122,1759204243393,-151.0,0.00017373,2]
[388487123,1759204243403,-151.0,0.00017373,2]
[388487124,1759204243412,-151.0,0.00017373,2]
[388487125,1759204243422,-224.918902,0.00017373,2]
[388487126,1759204243431,-152.703451,0.00017373,2]
[388487127,1759204243441,-6822.50694544,0.00017373,2]
[388487128,1759204243653,-467.91699988,0.00017362,2]
[388487129,1759204243687,-16717.04277449,0.00017362,2]
[388487130,1759204243697,-3404.61667705,0.00017373,2]
[388487131,1759204243707,-262.88810412,0.00017395,2]
[388487132,1759204243716,-6658.19525505,0.00017399,2]
[388487133,1759204243725,-306.22337,0.0001741,2]
[388487134,1759204243735,-3623.99075198,0.00017415,2]
[388487135,1759204243744,-13321.42832067,0.0001742,2]
[388487136,1759204243753,-151.0,0.0001742,2]
[388487137,1759204243762,-151.0,0.0001742,2]
[388487138,1759204243772,-700.0,0.00017425,2]
[388487139,1759204243781,-438.59,0.00017427,2]
[388487140,1759204243790,-3623.99075198,0.00017434,2]
[388487141,1759204243799,-3623.99075198,0.00017441,2]
[388487142,1759204243809,-3410.211173,0.00017442,2]
[388487143,1759204243818,-156.8831271,0.00017442,2]
[388487144,1759204243828,-968.2625671,0.00017442,2]
[388487145,1759204243837,-1001.895073,0.00017442,2]
[388487146,1759204243846,-151.0,0.00017442,2]
[388487147,1759204243856,-151.0,0.00017442,2]
[388487148,1759204243866,-154.085651,0.00017442,2]
[388487149,1759204243875,-3623.99075198,0.00017453,2]
[388487150,1759204243884,-150.0,0.00017461,2]
[388487151,1759204243894,-150.0,0.00017461,2]
[388487152,1759204243903,-150.0,0.00017461,2]
[388487153,1759204243913,-243.640984,0.00017461,2]
[388487154,1759204243922,-500.0,0.00017461,2]
[388487155,1759204243932,-150.0,0.00017461,2]
[388487156,1759204243942,-150.0,0.00017461,2]
[388487157,1759204243951,-151.0,0.00017461,2]
[388487158,1759204243961,-500.0,0.00017461,2]
[388487159,1759204243971,-150.0,0.00017461,2]
[388487160,1759204243980,-152.91008938,0.00017461,2]
[388487161,1759204243989,-500.0,0.00017461,2]
[388487162,1759204244001,-150.0,0.00017461,2]
[388487163,1759204244010,-151.0,0.00017461,2]
[388487164,1759204244019,-500.0,0.00017461,2]
[388487165,1759204244029,-151.0,0.00017461,2]
[388487166,1759204244039,-246.964344,0.00017461,2]
[388487167,1759204244049,-500.0,0.00017461,2]
[388487168,1759204244058,-126756.39292978,0.00017461,2]
[388487169,1759204245562,-397.298596,0.0001742,2]
[388487170,1759204245572,-500.0,0.00017461,2]
[388487171,1759204245581,-1272.17093567,0.00017461,2]
[388487172,1759204245721,-2144.10315545,0.00017461,2]
[388487173,1759204245734,-1118.0,0.00017461,2]
[388487174,1759204245787,-538.47959994,0.00017461,2]
[388487338,1759204381015,1000.0,0.00016481,2]
[388487391,1759204487123,844.06,0.00016476,2]
[388487512,1759204598787,500.0,0.00016483,7]
[388487513,1759204599649,500.0,0.00016483,7]
[388487514,1759204601053,500.0,0.00016483,7]
[388487515,1759204602322,500.0,0.00016483,7]
[388487516,1759204603818,500.0,0.00016483,7]
[388487518,1759204604750,500.0,0.00016483,7]
[388487519,1759204605569,500.0,0.00016483,7]
[388487520,1759204606737,329.49,0.00016483,7]
[388487526,1759204637233,150.0,0.000157,2]
[388487545,1759204696689,-150.0,0.0001688,2]
[388487546,1759204696711,-100.0,0.00017178,2]
[388487557,1759204723986,-635.00708651,0.00017178,2]
[388487558,1759204724011,-1200.0,0.00017178,2]
[388487559,1759204724034,-250.0,0.00017239,2]
[388487560,1759204724060,-395.38012,0.0001729,2]
[388487561,1759204724090,-2000.0,0.000173,2]
[388487562,1759204724116,-300.0,0.00017318,2]
[388487563,1759204724141,-166.00701143,0.00017318,2]
[388487564,1759204724171,-500.0,0.00017318,2]
[388487565,1759204724197,-500.0,0.00017318,2]
[388487566,1759204724223,-500.0,0.00017318,2]
[388487567,1759204724251,-306.90449149,0.00017318,2]
[388487568,1759204724275,-500.0,0.00017318,2]
[388487569,1759204724301,-500.0,0.00017318,2]
[388487570,1759204724326,-500.0,0.00017318,2]
[388487571,1759204724351,-500.0,0.00017318,2]
[388487572,1759204724376,-500.0,0.00017318,2]
[388487573,1759204724399,-6998.2276,0.0001732,2]
[388487574,1759204724422,-368.72,0.00017326,2]
[388487575,1759204724445,-277.9406,0.00017361,2]
[388487576,1759204724470,-2126.2824,0.00017361,2]
[388487577,1759204724494,-1000.0,0.00017362,2]
[388487578,1759204724517,-18125.62,0.00017362,2]
[388487579,1759204724546,-19803.84,0.00017362,2]
[388487580,1759204724571,-700.0,0.00017416,2]
[388487581,1759204724596,-151.0,0.0001742,2]
[388487582,1759204724622,-8260.13072239,0.00017431,2]
[388487583,1759204724646,-239.84119403,0.00017431,2]
[388487584,1759204724672,-170.26346873,0.00017431,2]
[388487585,1759204724697,-426.14034373,0.0001744,2]
[388487586,1759204724723,-989.0880262,0.0001744,2]
[388487587,1759204724747,-52638.2343818,0.00017441,2]
[388487588,1759204724772,-294.0865923,0.00017441,2]
[388487589,1759204724798,-500.0,0.00017461,2]
[388487590,1759204724822,-151.0,0.00017461,2]
[388487591,1759204725578,-350.872,0.00017461,2]
[388487592,1759204725600,-151.0,0.00017462,2]
[388487593,1759204725623,-151.0,0.00017462,2]
[388487594,1759204725644,-193.480756,0.00017462,2]
[388487595,1759204725666,-150.0,0.00017462,2]
[388487596,1759204725688,-176.28519401,0.00017462,2]
[388487597,1759204725710,-1661.26,0.00017462,2]
[388487598,1759204725731,-425.0,0.00017462,2]
[388487599,1759204725753,-150.0,0.00017462,2]
[388487600,1759204725776,-1326.0,0.00017462,2]
[388487601,1759204725797,-150.0,0.00017462,2]
[388487602,1759204725833,-500.0,0.00017462,2]
[388487603,1759204725862,-239.15630221,0.00017462,2]
[388487604,1759204725887,-500.0,0.00017462,2]
[388487605,1759204725912,-150.0,0.00017462,2]
[388487606,1759204725942,-16892.0127114,0.0001747,3]
[388487607,1759204725972,-936.443724,0.0001747,3]
[388487608,1759204725996,-474.52590314,0.0001747,3]
[388487609,1759204726019,-151.0,0.0001747,2]
[388487610,1759204726043,-151.0,0.0001747,2]
[388487611,1759204726067,-151.0,0.0001747,2]
[388487612,1759204726090,-151.0,0.0001747,2]
[388487613,1759204726114,-151.0,0.0001747,2]
[388487614,1759204726138,-300.784723,0.0001747,2]
[388487615,1759204726162,-377.433666,0.0001747,2]
[388487616,1759204726189,-377.433666,0.0001747,2]
[388487617,1759204726213,-377.433666,0.0001747,2]
[388487618,1759204726238,-377.433666,0.0001747,2]
[388487619,1759204726270,-500.0,0.0001747,3]
[388487620,1759204726298,-150.0,0.0001747,3]
[388487621,1759204726324,-1184.52752387,0.00017471,5]
[388487622,1759204726351,-583.16343629,0.00017472,2]
[388487623,1759204726375,-500.0,0.00017473,2]
[388487624,1759204726406,-502.62152433,0.00017473,2]
[388487625,1759204726433,-287.26836,0.00017473,2]
[388487626,1759204726457,-250.107615,0.00017473,2]
[388487627,1759204726482,-151.0,0.00017473,2]
[388487628,1759204726507,-157.706419,0.00017473,2]
[388487629,1759204726533,-151.0,0.00017473,2]
[388487630,1759204726558,-151.0,0.00017473,2]
[388487631,1759204726583,-151.0,0.00017473,2]
[388487632,1759204726608,-151.0,0.00017473,2]
[388487633,1759204726633,-151.0,0.00017473,2]
[388487634,1759204726660,-934.2,0.00017473,2]
[388487635,1759204726691,-217.71091172,0.00017475,2]
[388487636,1759204726718,-500.0,0.00017475,2]
[388487637,1759204726745,-276.4666329,0.00017475,2]
[388487638,1759204726772,-682.29552178,0.00017475,2]
[388487639,1759204726799,-151.0,0.00017476,2]
[388487640,1759204726827,-151.0,0.00017476,2]
[388487641,1759204726853,-151.0,0.00017476,2]
[388487642,1759204726880,-360.161164,0.00017476,2]
[388487643,1759204726906,-360.161164,0.00017476,2]
[388487644,1759204726932,-360.161164,0.00017476,2]
[388487645,1759204726957,-360.161164,0.00017476,2]
[388487646,1759204726983,-248.638961,0.00017476,2]
[388487647,1759204727011,-248.638961,0.00017476,2]
[388487648,1759204727039,-248.638961,0.00017476,2]
[388487649,1759204727068,-248.638961,0.00017476,2]
[388487650,1759204727095,-151.0,0.00017476,2]
[388487651,1759204727133,-151.0,0.00017476,2]
[388487652,1759204727168,-151.0,0.00017476,2]
[388487653,1759204727214,-151.0,0.00017476,2]
[388487654,1759204727264,-151.0,0.00017476,2]
[388487655,1759204727301,-151.0,0.00017476,2]
[388487656,1759204727328,-171.57,0.00017476,2]
[388487657,1759204727355,-183.81963136,0.00017477,2]
[388487658,1759204727382,-40516.2471732,0.00017483,2]
[388487659,1759204727409,-151.0,0.00017483,2]
[388487660,1759204727437,-151.0,0.00017483,2]
[388487661,1759204727463,-153.036485,0.00017483,2]
[388487662,1759204727490,-151.0,0.00017483,2]
[388487663,1759204727517,-151.0,0.00017483,2]
[388487664,1759204727544,-153.776032,0.00017483,2]
[388487665,1759204727571,-151.0,0.00017483,2]
[388487666,1759204727597,-151.0,0.00017483,2]
[388487667,1759204727623,-151.0,0.00017483,2]
[388487668,1759204727649,-360.161164,0.00017483,2]
[388487669,1759204727674,-360.161164,0.00017483,2]
[388487670,1759204727700,-360.161164,0.00017483,2]
[388487671,1759204727727,-360.161164,0.00017483,2]
[388487672,1759204727753,-248.638961,0.00017483,2]
[388487673,1759204727780,-248.638961,0.00017483,2]
[388487674,1759204727806,-248.638961,0.00017483,2]
[388487675,1759204727831,-248.638961,0.00017483,2]
[388487676,1759204727858,-151.0,0.00017483,2]
[388487677,1759204727883,-151.0,0.00017483,2]
[388487678,1759204727909,-151.0,0.00017483,2]
[388487679,1759204727935,-151.0,0.00017483,2]
[388487680,1759204727961,-151.0,0.00017483,2]
[388487681,1759204727987,-151.0,0.00017483,2]
[388487682,1759204728014,-151.0,0.00017483,2]
[388487683,1759204728040,-188.924863,0.00017483,2]
[388487684,1759204728067,-377.433666,0.00017483,2]
[388487685,1759204728094,-377.433666,0.00017483,2]
[388487686,1759204728120,-377.433666,0.00017483,2]
[388487687,1759204728146,-377.433666,0.00017483,2]
[388487688,1759204728179,-151.0,0.00017483,2]
[388487689,1759204728209,-151.0,0.00017483,2]
[388487690,1759204728242,-151.0,0.00017483,2]
[388487691,1759204728270,-710.538854,0.00017483,2]
[388487693,1759204728297,-710.538854,0.00017483,2]
[388487694,1759204728324,-710.538854,0.00017483,2]
[388487695,1759204728351,-710.538854,0.00017483,2]
[388487696,1759204728379,-151.0,0.00017483,2]
[388487697,1759204728404,-151.0,0.00017483,2]
[388487698,1759204728430,-168.774584,0.00017483,2]
[388487699,1759204728457,-206.188668,0.00017483,2]
[388487700,1759204728483,-206.188668,0.00017483,2]
[388487701,1759204728508,-206.188668,0.00017483,2]
[388487702,1759204728535,-206.188668,0.00017483,2]
[388487703,1759204728564,-2105.98479985,0.00017483,2]
[388487704,1759204728591,-3623.99075198,0.00017484,2]
[388487705,1759204728618,-305.62483672,0.00017486,2]
[388487706,1759204728646,-2312.5025914,0.00017486,2]
[388487707,1759204728672,-183.81963136,0.00017486,2]
[388487708,1759204728701,-583.16343629,0.00017487,2]
[388487709,1759204729220,-431.35850187,0.00017487,2]
[388487710,1759204729248,-295.58257559,0.00017489,2]
[388487711,1759204729271,-724.26947471,0.0001749,2]
[388487712,1759204729295,-1597.92947047,0.00017491,2]
[388487713,1759204729320,-1597.92947047,0.00017491,2]
[388487714,1759204729343,-285.6174746,0.00017492,2]
[388487715,1759204729367,-9227.65822436,0.00017496,2]
[388487716,1759204729390,-151.0,0.00017496,2]
[388487717,1759204729413,-151.0,0.00017496,2]
[388487718,1759204729436,-151.0,0.00017496,2]
[388487719,1759204729459,-151.0,0.00017496,2]
[388487720,1759204729482,-151.0,0.00017496,2]
[388487721,1759204729506,-151.0,0.00017496,2]
[388487722,1759204729528,-151.0,0.00017496,2]
[388487723,1759204729551,-151.0,0.00017496,2]
[388487724,1759204729572,-151.0,0.00017496,2]
[388487725,1759204729595,-151.0,0.00017496,2]
[388487726,1759204729617,-151.0,0.00017496,2]
[388487727,1759204729640,-151.0,0.00017496,2]
[388487728,1759204729664,-151.0,0.00017496,2]
[388487729,1759204729686,-322.6107,0.00017496,2]
[388487730,1759204729710,-166.06475418,0.00017497,2]
[388487731,1759204729732,-674.10786876,0.00017497,2]
[388487732,1759204729755,-244.81071526,0.00017499,2]
[388487733,1759204729778,-619.38139404,0.000175,2]
[388487734,1759204729802,-3623.99075198,0.000175,2]
[388487735,1759204729825,-477.42141,0.000175,2]
[388487736,1759204729847,-175.48,0.000175,2]
[388487737,1759204729869,-819.27,0.000175,2]
[388487738,1759204729892,-424.6,0.000175,2]
[388487739,1759204729913,-167.7,0.000175,2]
[388487740,1759204729935,-243.0,0.000175,2]
[388487741,1759204729957,-392.3492,0.000175,2]
[388487742,1759204729978,-900.0,0.000175,2]
[388487743,1759204730000,-1005.64,0.000175,2]
[388487744,1759204730022,-1196.09,0.000175,2]
[388487745,1759204730044,-786.0,0.000175,2]
[388487746,1759204730067,-183.5363,0.000175,2]
[388487747,1759204730088,-152.256864,0.00017506,2]
[388487748,1759204730110,-164.029178,0.00017506,2]
[388487749,1759204730132,-2137.63120576,0.00017507,2]
[388487750,1759204730154,-151.0,0.00017507,2]
[388487751,1759204730180,-291.032741,0.00017507,2]
[388487752,1759204730205,-375.0,0.00017512,2]
[388487753,1759204730228,-151.0,0.00017519,2]
[388487754,1759204730250,-151.0,0.00017519,2]
[388487755,1759204730272,-151.0,0.00017519,2]
[388487756,1759204730294,-360.161164,0.00017519,2]
[388487757,1759204730317,-360.161164,0.00017519,2]
[388487758,1759204730338,-360.161164,0.00017519,2]
[388487759,1759204730360,-360.161164,0.00017519,2]
[388487760,1759204730383,-248.638961,0.00017519,2]
[388487761,1759204730406,-248.638961,0.00017519,2]
[388487762,1759204730429,-248.638961,0.00017519,2]
[388487763,1759204730453,-248.638961,0.00017519,2]
[388487764,1759204730475,-151.0,0.00017519,2]
[388487765,1759204730497,-151.0,0.00017519,2]
[388487766,1759204730519,-151.0,0.00017519,2]
[388487767,1759204730542,-151.0,0.00017519,2]
[388487768,1759204730563,-151.0,0.00017519,2]
[388487769,1759204730586,-151.0,0.00017519,2]
[388487770,1759204730607,-377.433666,0.00017519,2]
[388487771,1759204730629,-377.433666,0.00017519,2]
[388487772,1759204730651,-377.433666,0.00017519,2]
[388487773,1759204730672,-377.433666,0.00017519,2]